bitfinex-derivatives/quotes_ETHF0:USTF0_20250702
["timestamp","ask_amount","ask_price","bid_price","bid_amount"]
[1751428037117,0.82404,2426.7,2426.6,5.71033585]
[1751428038323,0.82404,2426.7,2426.6,6.53441585]
[1751428038817,0.82404,2426.7,2426.6,7.98371585]
[1751428039322,0.82404,2426.7,2426.6,7.15963585]
[1751428039917,0.82404,2426.7,2426.6,7.98371585]
[1751428040416,28.41301,2427.1,2426.6,7.98371585]
[1751428040417,1.4062,2427.1,2426.6,7.15963585]
[1751428040722,24.944,2427.4,2427.0,0.82392]
[1751428040924,0.8239,2427.2,2427.1,5.27531924]
[1751428041220,1.3323,2427.7,2427.2,0.82387]
[1751428041418,24.944,2427.6,2427.3,2.39210924]
[1751428041617,24.944,2427.6,2427.3,3.74380924]
[1751428042020,0.82381,2427.4,2427.3,3.74380924]
[1751428042222,0.8238,2427.5,2427.3,3.74380924]
[1751428042421,0.8238,2427.5,2427.4,1.4273]
[1751428043119,0.82376,2427.6,2427.4,2.25111]
[1751428043420,0.82376,2427.6,2427.5,1.4273]
[1751428043621,0.82376,2427.6,2427.5,2.0869]
[1751428047322,0.82376,2427.6,2427.5,0.6596]
[1751428056029,0.82376,2427.6,2427.5,3.87547924]
[1751428056629,0.82376,2427.6,2427.5,3.05170924]
[1751428056828,11.591,2428.4,2427.5,3.05170924]
[1751428057127,0.82365,2427.9,2427.7,3.21578924]
[1751428057328,0.82362,2428.0,2427.8,2.16657]
[1751428057529,0.82362,2428.0,2427.9,1.3429]
[1751428057729,0.82362,2428.0,2427.9,2.86744]
[1751428057930,0.82362,2428.0,2427.9,2.0438]
[1751428058330,0.82362,2428.0,2427.9,2.86744]
[1751428058731,0.82362,2428.0,2427.9,2.0438]
[1751428059634,0.82362,2428.0,2427.9,2.86744]
[1751428060133,0.7064,2428.2,2427.9,4.43590924]
[1751428060329,26.46596,2428.2,2428.0,2.18049]
[1751428060632,25.75956,2428.2,2428.1,0.82357]
[1751428060833,25.75956,2428.2,2428.1,2.18047]
[1751428061631,11.59,2428.7,2428.2,0.82353]
[1751428061824,24.936,2428.6,2428.3,3.21560924]
[1751428062134,0.82345,2428.5,2428.4,1.3569]
[1751428062334,25.75942,2428.6,2428.4,2.18037]
[1751428062630,0.82343,2428.5,2428.4,1.3569]
[1751428064137,0.82343,2428.5,2428.4,2.18037]
[1751428064429,0.82343,2428.5,2428.4,1.3569]
[1751428068936,0.82353,2428.2,2428.1,4.05801151]
[1751428069336,0.82353,2428.2,2428.1,0.82357]
[1751428069538,0.82353,2428.2,2428.1,4.88158151]
[1751428070036,0.82352,2428.3,2428.1,4.88158151]
[1751428070233,0.82352,2428.3,2428.1,7.27369075]
[1751428070437,0.82353,2428.2,2428.1,7.27369075]
[1751428071237,0.82352,2428.3,2428.1,7.27369075]
[1751428071538,0.82353,2428.2,2428.1,7.27369075]
[1751428072039,0.82353,2428.3,2428.1,7.27369075]
[1751428072637,0.82353,2428.3,2428.2,1.349]
[1751428073539,0.82352,2428.3,2428.1,0.82357]
[1751428073734,0.82348,2428.4,2428.3,0.8235]
[1751428073940,0.82346,2428.5,2428.4,0.6906]
[1751428074140,0.82346,2428.5,2428.4,4.43170924]
[1751428076240,0.82346,2428.5,2428.4,5.25517924]
[1751428076439,0.82346,2428.5,2428.4,4.43170924]
[1751428076940,0.6873,2428.8,2428.4,4.43170924]
[1751428077140,0.82341,2428.6,2428.5,1.4294]
[1751428077339,0.82341,2428.6,2428.5,1.75934394]
[1751428077540,0.82341,2428.6,2428.5,2.58277394]
[1751428077939,0.82341,2428.6,2428.5,1.75934394]
[1751428078941,0.82341,2428.6,2428.5,2.58277394]
[1751428079345,0.82341,2428.6,2428.5,1.75934394]
[1751428079549,0.82341,2428.6,2428.5,1.4294]
[1751428080446,59.68047991,2429.6,2428.5,3.48797]
[1751428080447,2.05772,2429.6,2428.5,3.48797]
[1751428080652,0.82313,2429.4,2429.3,2.39210924]
[1751428080848,0.82311,2429.5,2429.3,2.39210924]
[1751428081143,0.82295,2430.0,2429.7,0.82302]
[1751428081341,24.968,2430.2,2429.9,2.39210924]
[1751428081542,0.82292,2430.0,2429.9,2.39210924]
[1751428082546,0.8229,2430.1,2429.9,2.39210924]
[1751428082851,0.82287,2430.2,2429.9,3.81640924]
[1751428083048,0.82287,2430.2,2430.1,2.39210924]
[1751428084748,0.6949,2430.3,2429.6,4.05801151]
[1751428084749,0.82303,2429.7,2429.6,4.05801151]
[1751428084954,0.82306,2429.6,2429.5,7.13112075]
[1751428085251,0.82306,2429.6,2429.5,6.45012075]
[1751428085450,0.82306,2429.6,2429.5,3.06490924]
[1751428088752,0.82306,2429.6,2429.5,2.39210924]
[1751428089050,0.82306,2429.6,2429.5,3.44113296]
[1751428091353,0.82306,2429.6,2429.5,0.7143]
[1751428091552,0.82309,2429.5,2429.4,0.7216]
[1751428091757,0.82309,2429.5,2429.4,3.11370924]
[1751428094456,0.82309,2429.5,2429.4,3.43431929]
[1751428094653,0.82316,2429.3,2429.2,40.8]
[1751428095159,0.82316,2429.3,2429.2,43.19210924]
[1751428099670,0.82316,2429.3,2429.2,40.8]
[1751428099872,0.82323,2429.1,2429.0,2.39210924]
[1751428100067,0.82326,2429.0,2428.9,0.7233]
[1751428100371,0.8233,2428.9,2428.8,43.19210924]
[1751428101577,0.8233,2428.9,2428.8,43.52400458]
[1751428102071,0.8233,2428.9,2428.8,43.19210924]
[1751428102272,0.82336,2428.7,2428.6,0.6731]
[1751428102472,0.82336,2428.7,2428.6,3.06520924]
[1751428102867,0.82336,2428.7,2428.6,43.86520924]
[1751428103074,0.6767,2429.1,2428.6,46.00848924]
[1751428103276,0.82332,2428.9,2428.6,43.61638]
[1751428103470,0.82332,2428.9,2428.8,2.39210924]
[1751428104072,0.82328,2429.0,2428.8,3.71200924]
[1751428104281,0.82322,2429.2,2429.0,0.82325]
[1751428104576,0.82322,2429.2,2429.1,4.42030924]
[1751428105377,0.82322,2429.2,2429.1,3.10040924]
[1751428106977,0.82322,2429.2,2429.1,2.39210924]
[1751428107877,0.82326,2429.0,2428.9,4.76631151]
[1751428108175,0.82326,2429.0,2428.9,0.7083]
[1751428108375,0.82326,2429.0,2428.9,4.76631151]
[1751428108774,0.6767,2429.4,2428.9,5.58961151]
[1751428109074,0.8232,2429.2,2429.1,2.39210924]
[1751428112070,0.82323,2429.1,2429.0,5.44641151]
[1751428113578,0.82322,2429.2,2429.0,6.26966151]
[1751428113782,0.82322,2429.2,2429.1,2.39210924]
[1751428113982,0.82319,2429.3,2429.1,4.58772924]
[1751428114282,0.8232,2429.2,2429.1,8.64574075]
[1751428114481,0.8232,2429.2,2429.1,7.82252075]
[1751428114678,0.8232,2429.2,2429.1,8.64575075]
[1751428114880,0.82318,2429.3,2429.1,8.64575075]
[1751428115883,0.6767,2429.4,2429.1,7.82252075]
[1751428115884,0.8232,2429.2,2429.1,7.82252075]
[1751428116287,0.8232,2429.2,2429.1,3.76450924]
[1751428116585,0.8232,2429.2,2429.1,7.81898054]
[1751428117384,0.8232,2429.2,2429.1,4.0544713]
[1751428117988,0.82323,2429.1,2429.0,4.0544713]
[1751428118285,0.82323,2429.1,2429.0,6.44658054]
[1751428119486,0.82323,2429.1,2429.0,2.39210924]
[1751428120480,0.82322,2429.2,2429.0,4.64796924]
[1751428120685,0.82322,2429.2,2429.1,3.82470924]
[1751428126087,0.82323,2429.1,2429.0,5.6826878]
[1751428126292,0.82326,2429.0,2428.9,8.78309704]
[1751428126492,0.82326,2429.0,2428.9,10.96709704]
[1751428127090,0.82326,2429.0,2428.9,5.28440924]
[1751428127798,0.82325,2429.1,2428.9,5.28440924]
[1751428127992,0.82325,2429.1,2429.0,8.08420663]
[1751428128192,0.82325,2429.1,2429.0,9.51530663]
[1751428131998,0.82325,2429.1,2429.0,3.82320924]
[1751428132499,0.82325,2429.1,2429.0,9.51709585]
[1751428133401,0.82325,2429.1,2429.0,3.82320924]
[1751428134101,0.82325,2429.1,2429.0,10.34060037]
[1751428134299,0.82323,2429.1,2429.0,10.34060037]
[1751428134599,0.82323,2429.1,2429.0,4.64646924]
[1751428134798,0.82318,2429.3,2429.1,0.82321]
[1751428134993,0.82315,2429.4,2429.2,4.59548924]
[1751428135199,0.82315,2429.4,2429.3,1.3802]
[1751428135397,0.82315,2429.4,2429.3,2.0987]
[1751428135597,0.82307,2429.6,2429.4,0.82312]
[1751428135803,0.82306,2429.6,2429.5,1.3802]
[1751428136105,0.82306,2429.6,2429.5,5.44800956]
[1751428136805,0.82306,2429.6,2429.5,1.3802]
[1751428137097,0.82306,2429.6,2429.5,5.44597911]
[1751428137304,0.82306,2429.6,2429.5,1.3802]
[1751428137705,12.2818,2429.9,2429.5,2.20328]
[1751428137903,0.82296,2429.9,2429.8,2.39210924]
[1751428138300,0.82296,2429.9,2429.8,43.19210924]
[1751428138605,0.6668,2430.1,2429.8,44.01508924]
[1751428138807,0.82289,2430.1,2430.0,2.39210924]
[1751428140599,0.82292,2430.0,2429.9,5.42342215]
[1751428141195,0.82291,2430.1,2429.9,2.18096]
[1751428141501,0.82291,2430.1,2430.0,2.39210924]
[1751428141697,0.82291,2430.1,2430.0,3.76780924]
[1751428141913,3.46672,2430.4,2430.0,4.59072924]
[1751428141914,0.82288,2430.2,2430.0,4.59072924]
[1751428142205,0.82288,2430.2,2430.1,0.7273]
[1751428142406,0.82288,2430.2,2430.1,2.103]
[1751428143710,0.82285,2430.3,2430.1,2.92589]
[1751428144009,0.82285,2430.3,2430.2,2.39210924]
[1751428144402,0.82285,2430.3,2430.2,44.61790924]
[1751428144602,0.82281,2430.4,2430.2,44.61790924]
[1751428144803,0.82281,2430.4,2430.3,1.4258]
[1751428146205,0.82282,2430.3,2430.2,43.19210924]
[1751428146807,0.82282,2430.3,2430.2,44.53440924]
[1751428148508,0.82273,2430.6,2430.2,44.53440924]
[1751428148705,0.82265,2430.8,2430.5,2.39210924]
[1751428149001,2.05639,2431.1,2430.6,2.1523]
[1751428149205,0.82279,2430.4,2430.2,41.62284]
[1751428149405,0.82279,2430.4,2430.3,3.11040924]
[1751428150010,0.82279,2430.4,2430.3,0.7183]
[1751428150710,0.82282,2430.3,2430.2,40.8]
[1751428151110,0.82289,2430.1,2430.0,1.3818]
[1751428151311,0.82289,2430.1,2430.0,5.20790924]
[1751428151610,0.82289,2430.1,2430.0,41.4796]
[1751428152005,2.05721,2430.2,2429.7,7.81563756]
[1751428152205,0.82299,2429.8,2429.7,8.49523756]
[1751428152604,0.82299,2429.8,2429.7,49.29523756]
[1751428152909,0.82299,2429.8,2429.7,47.93173756]
[1751428153110,0.7109,2430.1,2429.7,47.93173756]
[1751428153310,0.82297,2429.9,2429.8,5.42352832]
[1751428153510,0.82297,2429.9,2429.8,7.81563756]
[1751428154410,0.82299,2429.8,2429.7,4.73962832]
[1751428155108,0.82299,2429.8,2429.7,3.07170924]
[1751428155313,0.82299,2429.8,2429.7,7.13173756]
[1751428155609,0.82299,2429.8,2429.7,8.52423756]
[1751428155911,0.82299,2429.8,2429.7,4.46420924]
[1751428156311,0.82299,2429.8,2429.7,3.07170924]
[1751428156716,0.82299,2429.8,2429.7,7.11806713]
[1751428157012,0.82299,2429.8,2429.7,3.07170924]
[1751428158814,0.82299,2429.8,2429.7,7.12105425]
[1751428159313,0.82299,2429.8,2429.7,3.07170924]
[1751428159506,2.76817,2430.1,2429.5,47.31858409]
[1751428159507,4.44951924,2429.9,2429.5,5.69551409]
[1751428159712,0.82306,2429.6,2429.5,5.69551409]
[1751428160107,0.82306,2429.6,2429.5,8.08762333]
[1751428160413,0.82306,2429.6,2429.5,2.39210924]
[1751428160615,2.05732,2430.0,2429.5,2.39210924]
[1751428160814,0.82299,2429.8,2429.7,2.39210924]
[1751428161313,0.82299,2429.8,2429.7,8.06337108]
[1751428161915,0.82299,2429.8,2429.7,9.45747108]
[1751428162609,0.82299,2429.8,2429.7,3.78620924]
[1751428163814,0.7109,2430.1,2429.7,3.78620924]
[1751428164016,0.7109,2430.1,2430.0,2.39210924]
[1751428164509,1.53379,2430.1,2430.0,2.39210924]
[1751428165416,0.82289,2430.1,2430.0,2.39210924]
[1751428165824,0.82287,2430.2,2430.0,3.21502924]
[1751428166115,0.82287,2430.2,2430.1,3.08040924]
[1751428166310,0.82287,2430.2,2430.1,4.42760924]
[1751428168017,0.82287,2430.2,2430.1,8.48172984]
[1751428168216,0.82287,2430.2,2430.1,4.42760924]
[1751428168416,0.82287,2430.2,2430.1,0.6883]
[1751428169009,0.82292,2430.0,2429.9,8.06337108]
[1751428170419,3.21502924,2430.0,2429.9,5.67126184]
[1751428170614,0.82296,2429.9,2429.8,5.67126184]
[1751428170814,3.54306,2429.9,2429.8,5.67126184]
[1751428172623,3.54306,2429.9,2429.8,4.06110007]
[1751428173318,8.54306,2429.9,2429.8,4.06110007]
[1751428173521,3.54306,2429.9,2429.8,4.06110007]
[1751428173921,8.54306,2429.9,2429.8,4.06110007]
[1751428174226,0.82303,2429.7,2429.6,4.06110007]
[1751428175229,1.54573,2429.7,2429.6,4.06110007]
[1751428175624,0.82306,2429.6,2429.5,4.06110007]
[1751428176824,0.82309,2429.5,2429.4,4.06110007]
[1751428177920,27.11435,2430.0,2429.5,0.82307]
[1751428178118,0.82306,2429.7,2429.6,2.39210924]
[1751428178315,0.82306,2429.7,2429.6,4.54640924]
[1751428178926,0.82306,2429.7,2429.6,5.36946924]
[1751428179324,0.82306,2429.7,2429.6,2.1543]
[1751428179525,0.82306,2429.7,2429.6,0.7008]
[1751428180929,0.82306,2429.7,2429.6,1.52386]
[1751428181130,0.82306,2429.7,2429.6,2.92286]
[1751428181633,0.82306,2429.7,2429.6,2.0998]
[1751428183326,0.82303,2429.7,2429.6,2.0998]
[1751428184032,25.054,2429.9,2429.6,2.0998]
[1751428184033,0.82301,2429.8,2429.6,2.0998]
[1751428184330,0.82301,2429.8,2429.7,2.39210924]
[1751428184531,0.82301,2429.8,2429.7,3.74080924]
[1751428186531,0.82301,2429.8,2429.7,7.79926645]
[1751428186728,0.82301,2429.8,2429.7,5.40715721]
[1751428187832,0.82301,2429.8,2429.7,4.05845721]
[1751428188228,0.82303,2429.7,2429.6,4.75925721]
[1751428190130,0.82303,2429.7,2429.6,4.05845721]
[1751428190431,0.82306,2429.6,2429.5,4.05845721]
[1751428190630,0.82309,2429.5,2429.4,4.05845721]
[1751428191030,25.88809,2429.5,2429.4,4.05845721]
[1751428191933,0.82316,2429.3,2429.2,4.05845721]
[1751428194135,0.82319,2429.2,2429.1,4.05845721]
[1751428194335,0.82319,2429.2,2429.1,5.46755721]
[1751428195138,0.82319,2429.2,2429.1,4.05845721]
[1751428196338,0.82323,2429.1,2429.0,4.74115721]
[1751428196537,0.82323,2429.1,2429.0,6.15025721]
[1751428196736,0.8233,2428.9,2428.8,5.67126184]
[1751428197039,0.82343,2428.5,2428.4,5.67126184]
[1751428198534,0.82347,2428.4,2428.3,5.67126184]
[1751428199338,25.114,2428.7,2428.2,3.11950924]
[1751428199548,0.82349,2428.4,2428.3,2.39210924]
[1751428199935,0.82349,2428.4,2428.3,4.40050924]
[1751428201146,0.82347,2428.4,2428.3,4.40050924]
[1751428201644,0.82345,2428.5,2428.3,4.40050924]
[1751428201840,0.82339,2428.7,2428.4,2.23875]
[1751428202041,0.82339,2428.7,2428.6,2.39210924]
[1751428202533,0.82339,2428.7,2428.6,44.60740924]
[1751428203346,0.82331,2428.9,2428.7,0.82335]
[1751428203547,0.82331,2428.9,2428.8,4.38090924]
[1751428204544,59.246,2429.3,2428.8,5.20423924]
[1751428204841,0.82319,2429.2,2429.1,2.39210924]
[1751428205852,25.8172,2429.5,2428.9,2.39210924]
[1751428205853,0.82327,2429.0,2428.9,2.39210924]
[1751428206053,0.82325,2429.1,2428.9,3.21540924]
[1751428207047,0.82322,2429.2,2429.0,0.82325]
[1751428207249,25.8172,2429.5,2428.8,2.0149]
[1751428207250,0.82318,2429.3,2429.1,3.21531924]
[1751428207453,0.82319,2429.2,2429.1,2.39210924]
[1751428208558,0.82326,2429.0,2428.9,3.81460924]
[1751428208851,0.82326,2429.0,2428.9,1.4225]
[1751428209048,4.45007924,2429.3,2428.7,6.44599134]
[1751428209852,0.82333,2428.9,2428.8,40.8]
[1751428217456,2.05789,2429.4,2428.8,40.8]
[1751428217656,0.82319,2429.2,2429.1,2.39210924]
[1751428218057,0.82328,2429.0,2428.9,2.39210924]
[1751428218860,0.82328,2429.0,2428.9,3.21540924]
[1751428219057,0.82328,2429.0,2428.9,2.39210924]
[1751428219257,0.82328,2429.0,2428.9,3.21540924]
[1751428219560,0.82328,2429.0,2428.9,2.39210924]
[1751428220561,0.82325,2429.1,2428.9,3.21538924]
[1751428220754,2.05782,2429.4,2428.9,3.21538924]
[1751428221954,0.82324,2429.1,2429.0,0.82326]
[1751428222154,0.82322,2429.2,2429.0,0.82326]
[1751428222556,2.39210924,2429.5,2429.0,0.82326]
[1751428222756,0.82323,2429.1,2429.0,0.82326]
[1751428222959,4.44987924,2429.5,2428.9,3.21538924]
[1751428223159,0.82326,2429.0,2428.9,3.21538924]
[1751428223363,0.82324,2429.1,2429.0,0.82326]
[1751428223661,0.82324,2429.1,2428.9,3.21539924]
[1751428224260,0.82326,2429.0,2428.9,3.21539924]
[1751428224461,0.82324,2429.1,2428.9,3.21539924]
[1751428224665,0.82322,2429.2,2428.9,3.21539924]
[1751428224961,0.82322,2429.2,2429.0,0.82324]
[1751428225161,0.82322,2429.2,2429.1,0.82323]
[1751428226457,36.746,2429.6,2429.1,2.39210924]
[1751428226857,0.82314,2429.4,2429.2,0.82317]
[1751428227262,0.82316,2429.3,2429.2,0.82317]
[1751428227561,0.82317,2429.3,2429.1,3.21530924]
[1751428227860,0.82317,2429.3,2429.2,0.82319]
[1751428229857,0.82317,2429.3,2429.1,2.39210924]
[1751428230057,0.82318,2429.3,2429.1,0.82321]
[1751428230251,27.13261,2429.7,2429.1,0.82321]
[1751428230460,0.82315,2429.4,2429.3,0.82316]
[1751428230762,39.12910924,2429.7,2429.2,0.82317]
[1751428230763,0.82316,2429.3,2429.2,0.82317]
[1751428232465,0.82316,2429.3,2429.1,0.82321]
[1751428232970,0.82316,2429.3,2429.2,0.82319]
[1751428233164,0.82316,2429.3,2429.1,0.8232]
[1751428233469,0.82316,2429.3,2429.2,0.82319]
[1751428233968,2.05783,2429.4,2428.9,5.67711083]
[1751428234269,0.82322,2429.2,2429.1,0.82322]
[1751428235765,0.82325,2429.1,2429.0,0.82325]
[1751428235967,0.82322,2429.2,2428.9,5.67711083]
[1751428236160,0.82323,2429.1,2429.0,0.82324]
[1751428236361,0.82321,2429.2,2428.9,5.67711083]
[1751428236761,0.82321,2429.2,2429.0,2.39210924]
[1751428237369,0.82321,2429.2,2429.1,0.82323]
[1751428237565,0.82321,2429.2,2429.0,8.89245007]
[1751428237764,0.82321,2429.2,2429.1,0.82323]
[1751428237963,0.82314,2429.4,2429.0,8.06922007]
[1751428238165,0.82314,2429.4,2429.2,2.39210924]
[1751428238565,0.82314,2429.4,2429.2,3.21527924]
[1751428241668,2.39210924,2429.7,2429.3,0.82316]
[1751428241864,0.82313,2429.4,2429.3,0.82316]
[1751428242171,0.82312,2429.5,2429.3,0.82316]
[1751428242770,2.39210924,2429.7,2429.3,0.82316]
[1751428242771,0.82313,2429.4,2429.3,0.82316]
[1751428243165,0.82313,2429.4,2429.2,3.21527924]
[1751428243370,0.82313,2429.4,2429.3,0.82316]
[1751428243566,2.05732,2430.0,2429.5,0.82308]
[1751428243874,41.15942924,2430.0,2429.5,0.82308]
[1751428244264,0.82306,2429.6,2429.4,3.21520924]
[1751428244559,0.82309,2429.5,2429.3,0.82314]
[1751428244960,0.82309,2429.5,2429.4,5.67711083]
[1751428245367,0.82309,2429.5,2429.3,6.50025083]
[1751428245567,0.82313,2429.4,2429.3,5.67711083]
[1751428245867,0.82311,2429.5,2429.3,6.50027083]
[1751428246575,0.82311,2429.5,2429.3,5.67711083]
[1751428246776,0.82311,2429.5,2429.3,6.50025083]
[1751428247076,0.82311,2429.5,2429.4,0.82313]
[1751428247277,0.82308,2429.6,2429.4,0.82313]
[1751428247677,0.82309,2429.5,2429.4,0.82313]
[1751428248179,0.82309,2429.5,2429.3,6.50025083]
[1751428248578,0.82309,2429.5,2429.3,0.82314]
[1751428248882,0.82309,2429.5,2429.4,0.82313]
[1751428249175,0.82308,2429.6,2429.4,0.82313]
[1751428249581,0.82309,2429.5,2429.4,0.82313]
[1751428249882,0.82309,2429.5,2429.3,0.82314]
[1751428250177,0.82309,2429.5,2429.2,5.67711083]
[1751428250386,0.82309,2429.5,2429.4,0.82313]
[1751428250882,0.82309,2429.5,2429.3,0.82314]
[1751428251083,0.82314,2429.4,2429.2,7.20839083]
[1751428251284,1.48414,2429.4,2429.2,7.20839083]
[1751428252085,0.82316,2429.3,2429.2,6.38521083]
[1751428252287,0.82316,2429.3,2429.2,5.67711083]
[1751428252979,0.82319,2429.2,2429.1,5.67711083]
[1751428253185,3.21529924,2429.2,2429.1,5.67711083]
[1751428253480,0.82323,2429.1,2429.0,5.67711083]
[1751428253684,0.82333,2428.8,2428.7,8.11015833]
[1751428253875,0.82343,2428.5,2428.4,8.11015833]
[1751428254082,3.21553924,2428.5,2428.4,8.11015833]
[1751428254483,0.82353,2428.2,2428.1,40.8]
[1751428254781,0.82364,2427.9,2427.8,0.6651]
[1751428254988,2.39210924,2428.2,2427.7,21.08641166]
[1751428254989,2.0344,2428.1,2427.7,21.08641166]
[1751428255182,0.82367,2427.9,2427.8,40.8]
[1751428256082,0.82362,2428.0,2427.8,40.8]
[1751428256381,0.82364,2427.9,2427.8,40.8]
[1751428257088,2.0467,2428.0,2427.8,40.8]
[1751428257282,2.0467,2428.0,2427.8,41.62366]
[1751428257586,2.0467,2428.0,2427.8,40.8]
[1751428257788,0.82364,2427.9,2427.8,40.8]
[1751428258584,0.82367,2427.8,2427.6,3.21583924]
[1751428258888,0.82367,2427.8,2427.5,1.15219831]
[1751428258889,0.8237,2427.8,2427.5,1.15219831]
[1751428259190,0.8237,2427.7,2427.6,40.8]
[1751428259987,0.82369,2427.8,2427.6,40.8]
[1751428260189,2.26739,2427.8,2427.6,40.8]
[1751428260385,2.26739,2427.8,2427.6,41.62373]
[1751428260884,1.50905,2427.9,2427.6,41.62373]
[1751428261090,1.50905,2427.9,2427.6,44.01583924]
[1751428261486,1.50905,2427.9,2427.7,0.8237]
[1751428262290,0.6854,2427.9,2427.7,0.8237]
[1751428262491,1.50904,2427.9,2427.7,0.8237]
[1751428263093,0.6854,2427.9,2427.6,40.8]
[1751428263289,0.82367,2427.8,2427.6,40.8]
[1751428263491,0.8237,2427.7,2427.6,40.8]
[1751428264393,0.82369,2427.8,2427.6,40.8]
[1751428264593,2.21339,2427.8,2427.6,40.8]
[1751428264989,0.8237,2427.7,2427.6,40.8]
[1751428265596,2.9262,2427.8,2427.6,40.8]
[1751428265897,0.8237,2427.7,2427.6,40.8]
[1751428266595,0.82374,2427.6,2427.4,4.20200484]
[1751428266796,0.82374,2427.6,2427.4,3.05720924]
[1751428266996,2.1025,2427.8,2427.4,3.05720924]
[1751428267196,0.82376,2427.6,2427.5,40.8]
[1751428268487,2.05952,2427.5,2427.0,0.82393]
[1751428268692,0.8239,2427.2,2427.0,3.21603924]
[1751428268995,0.82378,2427.5,2427.3,0.82382]
[1751428269299,0.82378,2427.5,2427.4,2.39210924]
[1751428269489,3.07750924,2427.9,2427.4,3.21590924]
[1751428269490,0.82376,2427.6,2427.4,3.21590924]
[1751428269694,0.82374,2427.6,2427.4,3.21590924]
[1751428269897,0.82374,2427.6,2427.5,0.6851]
[1751428270098,0.82373,2427.7,2427.5,1.50887]
[1751428270500,0.82373,2427.7,2427.5,1.50885]
[1751428270700,0.82373,2427.7,2427.6,3.21584924]
[1751428271000,0.6942,2427.8,2427.6,2.39210924]
[1751428271202,0.6942,2427.8,2427.7,0.8237]
[1751428271400,2.0588,2427.9,2427.8,0.82367]
[1751428271603,0.82356,2428.2,2428.0,0.82359]
[1751428271795,0.82352,2428.3,2428.0,3.21569924]
[1751428271997,0.82352,2428.3,2428.1,0.82357]
[1751428272197,0.82352,2428.3,2428.0,3.21568924]
[1751428272497,0.82353,2428.2,2428.0,3.21568924]
[1751428272692,0.82364,2427.9,2427.7,3.21579924]
[1751428272902,0.82362,2428.0,2427.8,0.82366]
[1751428273592,0.82362,2428.0,2427.9,0.7122]
[1751428273794,0.82359,2428.1,2427.9,1.53583]
[1751428273996,2.39210924,2428.3,2427.9,0.7122]
[1751428274198,0.82358,2428.1,2427.9,1.53583]
[1751428274392,0.82358,2428.1,2428.0,1.3161]
[1751428274596,0.82355,2428.2,2428.0,1.3161]
[1751428274797,0.82357,2428.1,2428.0,1.3161]
[1751428275596,2.62955,2428.6,2428.0,1.3161]
[1751428275597,2.05855,2428.6,2428.0,1.3161]
[1751428275792,0.82357,2428.1,2428.0,1.3161]
[1751428275997,2.05858,2428.5,2428.0,1.3161]
[1751428276305,0.82357,2428.1,2428.0,1.3161]
[1751428277803,0.8236,2428.0,2427.9,0.7122]
[1751428278502,3.21570924,2428.0,2427.9,0.7122]
[1751428279200,0.8237,2427.7,2427.6,1.4405]
[1751428279400,0.8237,2427.7,2427.6,0.722]
[1751428280705,0.8237,2427.7,2427.6,2.1528]
[1751428280908,0.8237,2427.7,2427.6,2.97654]
[1751428281608,0.8237,2427.7,2427.6,2.1528]
[1751428282410,0.8237,2427.7,2427.6,0.722]
[1751428283109,0.5704,2428.3,2427.6,0.722]
[1751428283413,0.82359,2428.1,2427.8,2.39210924]
[1751428283710,0.82356,2428.2,2428.0,0.8236]
[1751428283912,0.82356,2428.2,2428.1,1.4375]
[1751428284210,0.82356,2428.2,2428.1,2.1037]
[1751428286907,0.82356,2428.2,2428.1,0.6662]
[1751428296725,0.8236,2428.0,2427.9,2.21162]
[1751428297022,0.8236,2428.0,2427.9,2.90302]
[1751428300224,0.8236,2428.0,2427.9,2.0794]
[1751428300427,0.8236,2428.0,2427.9,2.90303]
[1751428301115,0.82358,2428.1,2428.0,0.82359]
[1751428301321,0.82356,2428.2,2428.1,0.82355]
[1751428302426,0.82356,2428.2,2428.0,2.18378]
[1751428302621,0.82357,2428.1,2428.0,1.3602]
[1751428303424,0.8236,2428.0,2427.9,0.6914]
[1751428307326,0.82363,2427.9,2427.8,0.7004]
[1751428307826,0.82367,2427.8,2427.7,0.7248]
[1751428308629,0.8237,2427.7,2427.6,5.67216385]
[1751428309231,3.21580924,2427.7,2427.6,5.67216385]
[1751428309428,3.21580924,2427.7,2427.4,5.67216385]
[1751428309429,0.82377,2427.5,2427.4,5.67216385]
[1751428309626,0.82377,2427.5,2427.4,6.39696385]
[1751428313031,0.82377,2427.5,2427.4,5.67216385]
[1751428315735,0.82384,2427.3,2427.2,2.1173]
[1751428316137,0.82384,2427.3,2427.2,0.7272]
[1751428317426,0.82384,2427.3,2427.2,1.55107]
[1751428317627,2.62985,2427.8,2427.2,2.1127]
[1751428317826,0.82381,2427.4,2427.3,3.21592924]
[1751428318028,0.82381,2427.4,2427.3,2.20932]
[1751428318231,0.82381,2427.4,2427.3,1.3855]
[1751428318436,0.82384,2427.3,2427.2,0.7272]
[1751428319125,0.82384,2427.3,2427.2,2.93657]
[1751428319329,0.82382,2427.4,2427.2,2.93657]
[1751428319538,0.82382,2427.4,2427.3,1.3855]
[1751428319837,0.82382,2427.4,2427.3,7.10103083]
[1751428321736,2.39210924,2427.7,2427.3,2.20933]
[1751428322036,0.8238,2427.5,2427.4,1.4239]
[1751428323431,0.82384,2427.3,2427.2,0.7272]
[1751428323839,0.82384,2427.3,2427.2,2.0894]
[1751428324443,0.82383,2427.4,2427.3,0.82384]
[1751428324740,0.82383,2427.4,2427.3,2.18604]
[1751428325235,0.82383,2427.4,2427.3,2.86894]
[1751428325435,0.82383,2427.4,2427.3,2.0451]
[1751428328235,0.82383,2427.4,2427.3,0.6829]
[1751428328443,0.82384,2427.3,2427.2,0.7272]
[1751428330944,0.82384,2427.3,2427.2,2.1653]
[1751428334545,0.82384,2427.3,2427.2,0.7272]
[1751428338356,0.82394,2427.0,2426.9,6.37146365]
[1751428339252,0.82394,2427.0,2426.9,7.76876365]
[1751428340053,0.82394,2427.0,2426.9,8.42666365]
[1751428341339,0.82394,2427.0,2426.9,9.25063365]